[Event "*** Titled Tuesday Blitz"]
[Site "Chess.com"]
[Date "2018.06.05"]
[Round "1"]
[White "TableVolleyball"]
[Black "Sameer555"]
[Result "1-0"]
[WhiteElo "2486"]
[BlackElo "2148"]
[TimeControl "180+2"]
[EndTime "13:04:23 PDT"]
[Termination "TableVolleyball won by resignation"]

1. e4 {[%clk 0:03:01.9]} 1... c5 {[%clk 0:02:59.9]} 2. Nf3 {[%clk 0:03:01.7]}
2... e6 {[%clk 0:03:00.6]} 3. d4 {[%clk 0:03:01.2]} 3... cxd4 {[%clk 0:03:02.5]}
4. Nxd4 {[%clk 0:03:03]} 4... a6 {[%clk 0:03:02.6]} 5. Nc3 {[%clk 0:02:57.9]}
5... Qc7 {[%clk 0:03:02.1]} 6. g3 {[%clk 0:02:56.1]} 6... Bb4 {[%clk 0:03:01.6]}
7. Bd2 {[%clk 0:02:54.7]} 7... Nf6 {[%clk 0:03:01.1]} 8. Bg2 {[%clk 0:02:53.7]}
8... O-O {[%clk 0:02:59.9]} 9. O-O {[%clk 0:02:52.7]} 9... Be7 {[%clk
0:03:01.1]} 10. Qe2 {[%clk 0:02:52.2]} 10... d6 {[%clk 0:03:02.2]} 11. a4 {[%clk
0:02:51.9]} 11... Nc6 {[%clk 0:03:00.7]} 12. Nb3 {[%clk 0:02:51.9]} 12... b6
{[%clk 0:02:58.8]} 13. f4 {[%clk 0:02:50.8]} 13... Bb7 {[%clk 0:02:59.1]} 14. g4
{[%clk 0:02:49.3]} 14... Nd7 {[%clk 0:02:52.7]} 15. Rf3 {[%clk 0:02:45]} 15...
Nc5 {[%clk 0:02:52.3]} 16. Rh3 {[%clk 0:02:41.5]} 16... Nxb3 {[%clk 0:02:52.6]}
17. cxb3 {[%clk 0:02:40.3]} 17... Nd4 {[%clk 0:02:47.7]} 18. Qd1 {[%clk
0:02:37.8]} 18... f5 {[%clk 0:02:36.4]} 19. gxf5 {[%clk 0:02:35]} 19... exf5
{[%clk 0:02:36.7]} 20. Be3 {[%clk 0:02:31.4]} 20... Ne6 {[%clk 0:02:31.2]} 21.
Qh5 {[%clk 0:02:27.4]} 21... h6 {[%clk 0:02:31.4]} 22. Rg3 {[%clk 0:02:21.3]}
22... Bf6 {[%clk 0:02:01.5]} 23. exf5 {[%clk 0:02:16.9]} 23... Nd4 {[%clk
0:01:58.6]} 24. Nd5 {[%clk 0:02:15]} 24... Qc2 {[%clk 0:01:36.3]} 25. Nxf6+
{[%clk 0:02:10.1]} 25... Rxf6 {[%clk 0:01:38.2]} 26. Bxd4 {[%clk 0:02:11.4]}
26... Qe2 {[%clk 0:01:33.6]} 27. Qxe2 {[%clk 0:02:09.1]} 1-0

[Event "*** Titled Tuesday Blitz"]
[Site "Chess.com"]
[Date "2018.06.05"]
[Round "1"]
[White "saikrishnaReturns"]
[Black "bugsbunny444"]
[Result "1-0"]
[WhiteElo "2642"]
[BlackElo "2325"]
[TimeControl "180+2"]
[EndTime "13:04:25 PDT"]
[Termination "saikrishnaReturns won by resignation"]

1. e4 {[%clk 0:03:01.3]} 1... c5 {[%clk 0:03:00.7]} 2. Nf3 {[%clk 0:03:01.8]}
2... e6 {[%clk 0:03:01.5]} 3. d4 {[%clk 0:03:02.7]} 3... cxd4 {[%clk 0:03:03.1]}
4. Nxd4 {[%clk 0:03:04.3]} 4... a6 {[%clk 0:03:04.7]} 5. Bd3 {[%clk 0:03:03.8]}
5... Nf6 {[%clk 0:03:04.2]} 6. O-O {[%clk 0:03:03.4]} 6... Qc7 {[%clk
0:03:05.4]} 7. Nc3 {[%clk 0:02:59.6]} 7... Bc5 {[%clk 0:03:03.3]} 8. Nb3 {[%clk
0:03:00.1]} 8... Be7 {[%clk 0:03:04.5]} 9. f4 {[%clk 0:02:57.1]} 9... d6 {[%clk
0:03:05.5]} 10. Qf3 {[%clk 0:02:57.4]} 10... b5 {[%clk 0:02:54.6]} 11. Qg3
{[%clk 0:02:51.7]} 11... O-O {[%clk 0:02:14.8]} 12. e5 {[%clk 0:02:42.8]} 12...
Nfd7 {[%clk 0:01:41.3]} 13. f5 {[%clk 0:02:35.9]} 13... dxe5 {[%clk 0:01:33]}
14. Bh6 {[%clk 0:02:32.7]} 14... g6 {[%clk 0:00:27.6]} 15. fxg6 {[%clk
0:02:34.6]} 15... fxg6 {[%clk 0:00:16.8]} 16. Bxg6 {[%clk 0:02:36.5]} 1-0

[Event "*** Titled Tuesday Blitz"]
[Site "Chess.com"]
[Date "2018.06.05"]
[Round "1"]
[White "dalmatinac101"]
[Black "Slovak_fighter2000"]
[Result "1-0"]
[WhiteElo "2720"]
[BlackElo "2373"]
[TimeControl "180+2"]
[EndTime "13:05:18 PDT"]
[Termination "dalmatinac101 won by resignation"]

1. e4 {[%clk 0:03:01.1]} 1... e6 {[%clk 0:03:01.1]} 2. d4 {[%clk 0:03:02]} 2...
d5 {[%clk 0:03:02.4]} 3. Nc3 {[%clk 0:03:03.7]} 3... Nf6 {[%clk 0:03:02.3]} 4.
Bg5 {[%clk 0:03:04.8]} 4... Be7 {[%clk 0:02:57.2]} 5. e5 {[%clk 0:03:05.7]} 5...
Nfd7 {[%clk 0:02:58.3]} 6. h4 {[%clk 0:03:07.2]} 6... h6 {[%clk 0:02:58.9]} 7.
Bxe7 {[%clk 0:03:03.5]} 7... Qxe7 {[%clk 0:03:00.5]} 8. f4 {[%clk 0:03:05.2]}
8... O-O {[%clk 0:03:00.2]} 9. g4 {[%clk 0:03:04]} 9... f6 {[%clk 0:02:56.9]}
10. Qd2 {[%clk 0:03:00.4]} 10... c5 {[%clk 0:02:49]} 11. Nge2 {[%clk 0:02:50.9]}
11... Nc6 {[%clk 0:02:44.3]} 12. exf6 {[%clk 0:02:46]} 12... Nxf6 {[%clk
0:02:35.5]} 13. g5 {[%clk 0:02:45.3]} 13... Nh5 {[%clk 0:02:28]} 14. gxh6 {[%clk
0:02:31.3]} 14... gxh6 {[%clk 0:02:23]} 15. O-O-O {[%clk 0:02:28.2]} 15... cxd4
{[%clk 0:02:16.4]} 16. Rg1+ {[%clk 0:02:28.9]} 16... Kh8 {[%clk 0:02:11.5]} 17.
Nxd4 {[%clk 0:02:24]} 17... Nxf4 {[%clk 0:02:01.1]} 18. Nce2 {[%clk 0:02:03.6]}
18... Nxd4 {[%clk 0:01:57.9]} 19. Nxf4 {[%clk 0:01:58.5]} 19... Rxf4 {[%clk
0:01:33.8]} 20. Qxf4 {[%clk 0:02:00.4]} 20... Nf5 {[%clk 0:01:35.3]} 21. Qe5+
{[%clk 0:01:56.5]} 21... Kh7 {[%clk 0:01:34.7]} 22. Bd3 {[%clk 0:01:55.8]} 22...
Qf7 {[%clk 0:01:33.6]} 23. Bxf5+ {[%clk 0:01:44.8]} 23... exf5 {[%clk
0:01:34.1]} 24. Rg2 {[%clk 0:01:31.5]} 24... Be6 {[%clk 0:01:10.9]} 25. Rdg1
{[%clk 0:01:32]} 1-0

[Event "*** Titled Tuesday Blitz"]
[Site "Chess.com"]
[Date "2018.06.05"]
[Round "1"]
[White "Sanan_Sjugirov"]
[Black "UNDERTAKER2001"]
[Result "1-0"]
[WhiteElo "2710"]
[BlackElo "2368"]
[TimeControl "180+2"]
[EndTime "13:05:18 PDT"]
[Termination "Sanan_Sjugirov won by resignation"]

1. e4 {[%clk 0:03:00.2]} 1... e6 {[%clk 0:02:59.8]} 2. d4 {[%clk 0:03:00.7]}
2... d5 {[%clk 0:02:59.4]} 3. Nd2 {[%clk 0:03:01.8]} 3... Nf6 {[%clk 0:02:59.6]}
4. e5 {[%clk 0:03:02]} 4... Nfd7 {[%clk 0:03:01.1]} 5. Bd3 {[%clk 0:03:01.2]}
5... c5 {[%clk 0:03:02.3]} 6. c3 {[%clk 0:03:02.4]} 6... Nc6 {[%clk 0:03:03.8]}
7. Ne2 {[%clk 0:02:57.9]} 7... cxd4 {[%clk 0:03:04.4]} 8. cxd4 {[%clk
0:02:59.4]} 8... f6 {[%clk 0:03:05.5]} 9. exf6 {[%clk 0:03:00]} 9... Nxf6 {[%clk
0:03:06.3]} 10. O-O {[%clk 0:02:59.8]} 10... Bd6 {[%clk 0:03:07.7]} 11. Nf3
{[%clk 0:03:00.7]} 11... Qc7 {[%clk 0:03:08.2]} 12. Bg5 {[%clk 0:03:00.2]} 12...
O-O {[%clk 0:03:08.6]} 13. Rc1 {[%clk 0:03:01]} 13... Nh5 {[%clk 0:03:05]} 14.
Ng3 {[%clk 0:02:37.8]} 14... Nf4 {[%clk 0:02:49.1]} 15. Bb1 {[%clk 0:02:38]}
15... h6 {[%clk 0:02:01.3]} 16. Bxf4 {[%clk 0:02:38.4]} 16... Bxf4 {[%clk
0:02:02.1]} 17. Qd3 {[%clk 0:02:39.1]} 17... Bxc1 {[%clk 0:01:47.3]} 18. Qh7+
{[%clk 0:02:35.9]} 18... Kf7 {[%clk 0:01:47.9]} 19. Bg6+ {[%clk 0:02:31.5]}
19... Ke7 {[%clk 0:01:25]} 20. Qxg7+ {[%clk 0:02:32]} 20... Kd6 {[%clk
0:01:23.9]} 21. Qxf8+ {[%clk 0:02:32.4]} 21... Ne7 {[%clk 0:01:25]} 22. Ne5
{[%clk 0:02:22]} 22... Bxb2 {[%clk 0:01:09.9]} 23. Be8 {[%clk 0:01:57.2]} 23...
Bxd4 {[%clk 0:00:54]} 24. Nf7+ {[%clk 0:01:57.4]} 1-0

[Event "*** Titled Tuesday Blitz"]
[Site "Chess.com"]
[Date "2018.06.05"]
[Round "1"]
[White "LastHeroJr"]
[Black "KRASAVCHIK2002"]
[Result "1-0"]
[WhiteElo "2530"]
[BlackElo "2213"]
[TimeControl "180+2"]
[EndTime "13:05:34 PDT"]
[Termination "LastHeroJr won by resignation"]

1. e4 {[%clk 0:03:01.8]} 1... c5 {[%clk 0:03:00.3]} 2. Nf3 {[%clk 0:03:02.7]}
2... d6 {[%clk 0:03:01.4]} 3. d4 {[%clk 0:03:03.8]} 3... cxd4 {[%clk 0:03:02.4]}
4. Nxd4 {[%clk 0:03:05.7]} 4... Nf6 {[%clk 0:03:03.4]} 5. Nc3 {[%clk 0:03:07.3]}
5... a6 {[%clk 0:03:04.7]} 6. Bg5 {[%clk 0:03:08.3]} 6... e6 {[%clk 0:03:05.7]}
7. f4 {[%clk 0:03:09.5]} 7... Qb6 {[%clk 0:03:06.7]} 8. Qd3 {[%clk 0:03:08.2]}
8... Qxb2 {[%clk 0:03:05.5]} 9. Nb3 {[%clk 0:03:07.6]} 9... Qa3 {[%clk
0:02:57.8]} 10. f5 {[%clk 0:02:54.4]} 10... Nc6 {[%clk 0:02:49.7]} 11. fxe6
{[%clk 0:02:48.9]} 11... Bxe6 {[%clk 0:02:49.1]} 12. Bxf6 {[%clk 0:02:41.9]}
12... gxf6 {[%clk 0:02:49.2]} 13. Be2 {[%clk 0:02:39.2]} 13... Nb4 {[%clk
0:02:29.6]} 14. Qd2 {[%clk 0:02:40]} 14... Qb2 {[%clk 0:01:52.3]} 15. O-O {[%clk
0:02:40.9]} 15... Qxc2 {[%clk 0:01:48.2]} 16. Qd4 {[%clk 0:02:33]} 16... Nc6
{[%clk 0:01:39.1]} 17. Qxf6 {[%clk 0:02:33.4]} 17... Rg8 {[%clk 0:01:39.9]} 18.
Rac1 {[%clk 0:01:46.4]} 18... Qb2 {[%clk 0:01:38.1]} 19. Rb1 {[%clk 0:01:36.3]}
19... Qa3 {[%clk 0:01:26.6]} 20. Bh5 {[%clk 0:01:26.5]} 20... Ne5 {[%clk
0:00:58.8]} 21. Qxe6+ {[%clk 0:01:26.6]} 21... Kd8 {[%clk 0:00:54.9]} 22. Bxf7
{[%clk 0:01:24.1]} 1-0

[Event "*** Titled Tuesday Blitz"]
[Site "Chess.com"]
[Date "2018.06.05"]
[Round "1"]
[White "Manukyan_Artak"]
[Black "Arm-Tal"]
[Result "0-1"]
[WhiteElo "2329"]
[BlackElo "2669"]
[TimeControl "180+2"]
[EndTime "13:05:42 PDT"]
[Termination "Arm-Tal won by resignation"]

1. e4 {[%clk 0:02:59.9]} 1... Nf6 {[%clk 0:03:00.3]} 2. Nc3 {[%clk 0:03:00.3]}
2... e5 {[%clk 0:03:01]} 3. Nf3 {[%clk 0:03:00.5]} 3... Nc6 {[%clk 0:03:01.8]}
4. d4 {[%clk 0:02:56]} 4... exd4 {[%clk 0:03:01.7]} 5. Nxd4 {[%clk 0:02:56.9]}
5... Bb4 {[%clk 0:03:02.4]} 6. Nxc6 {[%clk 0:02:55.9]} 6... bxc6 {[%clk
0:03:04.3]} 7. Bd3 {[%clk 0:02:54.1]} 7... d5 {[%clk 0:03:04.8]} 8. O-O {[%clk
0:02:45.7]} 8... O-O {[%clk 0:03:04.5]} 9. Bg5 {[%clk 0:02:44.4]} 9... h6 {[%clk
0:02:54.9]} 10. Bxf6 {[%clk 0:02:20.7]} 10... Qxf6 {[%clk 0:02:54.7]} 11. exd5
{[%clk 0:02:22]} 11... Bxc3 {[%clk 0:02:55.2]} 12. bxc3 {[%clk 0:02:22.8]} 12...
cxd5 {[%clk 0:02:56.6]} 13. c4 {[%clk 0:02:21.6]} 13... dxc4 {[%clk 0:02:48]}
14. Bxc4 {[%clk 0:02:21.3]} 14... Bb7 {[%clk 0:02:48.4]} 15. Qg4 {[%clk
0:02:11]} 15... Rad8 {[%clk 0:02:42.6]} 16. Rad1 {[%clk 0:02:06.6]} 16... Rfe8
{[%clk 0:02:38.6]} 17. h4 {[%clk 0:02:01.3]} 17... Bc6 {[%clk 0:02:21]} 18. h5
{[%clk 0:01:41.8]} 18... Kf8 {[%clk 0:02:15.5]} 19. Bb3 {[%clk 0:01:30.2]} 19...
a5 {[%clk 0:02:12.6]} 20. a4 {[%clk 0:01:28]} 20... Re5 {[%clk 0:02:09.9]} 21.
Rxd8+ {[%clk 0:01:21.9]} 21... Qxd8 {[%clk 0:02:11.8]} 22. Qc4 {[%clk
0:01:19.8]} 22... Qf6 {[%clk 0:02:09.6]} 23. Rd1 {[%clk 0:01:02.8]} 23... Rg5
{[%clk 0:02:01.2]} 24. g3 {[%clk 0:00:55]} 24... Rxh5 {[%clk 0:01:58.6]} 25.
Rd8+ {[%clk 0:00:54.4]} 25... Ke7 {[%clk 0:01:58.3]} 26. Qe2+ {[%clk 0:00:36.3]}
26... Kxd8 {[%clk 0:01:50.4]} 27. Qxh5 {[%clk 0:00:36.7]} 27... Qa1+ {[%clk
0:01:51.3]} 0-1

[Event "*** Titled Tuesday Blitz"]
[Site "Chess.com"]
[Date "2018.06.05"]
[Round "1"]
[White "LuisFSiles"]
[Black "IMAghasiyevKamal"]
[Result "0-1"]
[WhiteElo "2138"]
[BlackElo "2479"]
[TimeControl "180+2"]
[EndTime "13:05:45 PDT"]
[Termination "IMAghasiyevKamal won by resignation"]

1. e4 {[%clk 0:02:59.6]} 1... c5 {[%clk 0:02:59.4]} 2. Nf3 {[%clk 0:02:59.6]}
2... d6 {[%clk 0:02:57]} 3. d4 {[%clk 0:02:59.9]} 3... cxd4 {[%clk 0:02:58]} 4.
Nxd4 {[%clk 0:03:00.8]} 4... Nf6 {[%clk 0:02:58.9]} 5. Nc3 {[%clk 0:03:01.4]}
5... g6 {[%clk 0:02:59.8]} 6. Be3 {[%clk 0:03:01.4]} 6... Bg7 {[%clk 0:03:00.6]}
7. f3 {[%clk 0:03:02.5]} 7... O-O {[%clk 0:03:01.1]} 8. Qd2 {[%clk 0:03:03.5]}
8... Nc6 {[%clk 0:03:02.1]} 9. O-O-O {[%clk 0:03:04.5]} 9... d5 {[%clk
0:03:02.9]} 10. Kb1 {[%clk 0:03:04.3]} 10... e5 {[%clk 0:03:01.9]} 11. Nxc6
{[%clk 0:03:01.6]} 11... bxc6 {[%clk 0:03:02.7]} 12. Bc5 {[%clk 0:02:39.4]}
12... d4 {[%clk 0:02:47.3]} 13. Na4 {[%clk 0:02:34.9]} 13... Re8 {[%clk
0:02:09.8]} 14. g4 {[%clk 0:02:31.7]} 14... Be6 {[%clk 0:02:05.2]} 15. h4 {[%clk
0:02:27.5]} 15... h5 {[%clk 0:02:05.4]} 16. g5 {[%clk 0:01:57.6]} 16... Nd7
{[%clk 0:02:04.7]} 17. c3 {[%clk 0:01:32]} 17... Qa5 {[%clk 0:02:01.3]} 18. Bb4
{[%clk 0:00:27.9]} 18... Qxa4 {[%clk 0:01:59.1]} 19. b3 {[%clk 0:00:29.2]} 19...
Bxb3 {[%clk 0:01:50]} 20. axb3 {[%clk 0:00:31.1]} 20... Qxb3+ {[%clk 0:01:51]}
21. Kc1 {[%clk 0:00:32]} 21... a5 {[%clk 0:01:42.5]} 22. Bd6 {[%clk 0:00:24.8]}
0-1

[Event "*** Titled Tuesday Blitz"]
[Site "Chess.com"]
[Date "2018.06.05"]
[Round "1"]
[White "Bryakin_Mikhail"]
[Black "lucasmito"]
[Result "1-0"]
[WhiteElo "2645"]
[BlackElo "2328"]
[TimeControl "180+2"]
[EndTime "13:05:57 PDT"]
[Termination "Bryakin_Mikhail won by resignation"]

1. d4 {[%clk 0:03:00]} 1... Nf6 {[%clk 0:02:59.5]} 2. c4 {[%clk 0:03:00.7]} 2...
g6 {[%clk 0:02:38.4]} 3. Nc3 {[%clk 0:02:58.6]} 3... d5 {[%clk 0:02:37.4]} 4.
Nf3 {[%clk 0:02:59.1]} 4... Bg7 {[%clk 0:02:38.2]} 5. h4 {[%clk 0:03:00.5]} 5...
dxc4 {[%clk 0:02:34]} 6. e4 {[%clk 0:02:58.9]} 6... c5 {[%clk 0:02:16.4]} 7. d5
{[%clk 0:02:59.1]} 7... b5 {[%clk 0:02:15.2]} 8. h5 {[%clk 0:02:29.3]} 8... gxh5
{[%clk 0:01:53.5]} 9. e5 {[%clk 0:02:18.4]} 9... Ng4 {[%clk 0:01:47.4]} 10. Rxh5
{[%clk 0:02:15.6]} 10... a6 {[%clk 0:01:35.7]} 11. d6 {[%clk 0:01:40.1]} 11...
exd6 {[%clk 0:01:13]} 12. Qd5 {[%clk 0:01:31.4]} 12... Ra7 {[%clk 0:01:07.3]}
13. Bg5 {[%clk 0:01:31.8]} 13... Be6 {[%clk 0:00:25.3]} 14. Bxd8 {[%clk
0:00:54.5]} 14... dxe5 {[%clk 0:00:25.2]} 1-0

[Event "*** Titled Tuesday Blitz"]
[Site "Chess.com"]
[Date "2018.06.05"]
[Round "1"]
[White "aqmarkin"]
[Black "mazetofonias"]
[Result "0-1"]
[WhiteElo "2231"]
[BlackElo "2551"]
[TimeControl "180+2"]
[EndTime "13:06:06 PDT"]
[Termination "mazetofonias won by resignation"]

1. e4 {[%clk 0:03:01.9]} 1... c5 {[%clk 0:02:59.4]} 2. Nc3 {[%clk 0:03:02.4]}
2... Nc6 {[%clk 0:02:57.3]} 3. f4 {[%clk 0:03:03.3]} 3... g6 {[%clk 0:02:57.3]}
4. Nf3 {[%clk 0:03:04.1]} 4... Bg7 {[%clk 0:02:57.2]} 5. Bb5 {[%clk 0:03:04.9]}
5... Nd4 {[%clk 0:02:58.2]} 6. Bc4 {[%clk 0:03:05.6]} 6... e6 {[%clk 0:02:58.7]}
7. e5 {[%clk 0:03:05.3]} 7... d5 {[%clk 0:02:57.4]} 8. Nxd4 {[%clk 0:03:05.6]}
8... cxd4 {[%clk 0:02:57.9]} 9. Bb5+ {[%clk 0:03:06.5]} 9... Kf8 {[%clk
0:02:53.4]} 10. Ne2 {[%clk 0:03:06.8]} 10... Qb6 {[%clk 0:02:54.2]} 11. Bd3
{[%clk 0:03:06.1]} 11... h5 {[%clk 0:02:55.7]} 12. b3 {[%clk 0:03:06.7]} 12...
Ne7 {[%clk 0:02:55.8]} 13. Bb2 {[%clk 0:03:06.1]} 13... Nc6 {[%clk 0:02:57.2]}
14. a4 {[%clk 0:03:01.1]} 14... a5 {[%clk 0:02:53.3]} 15. O-O {[%clk 0:02:59.5]}
15... Kg8 {[%clk 0:02:51]} 16. Qe1 {[%clk 0:02:59.3]} 16... Bf8 {[%clk
0:02:43.6]} 17. Qg3 {[%clk 0:02:52.7]} 17... Bd7 {[%clk 0:02:34.5]} 18. Kh1
{[%clk 0:02:41.9]} 18... Rh7 {[%clk 0:02:24.3]} 19. f5 {[%clk 0:02:25.2]} 19...
exf5 {[%clk 0:02:25.6]} 20. Bxf5 {[%clk 0:02:17.9]} 20... Bxf5 {[%clk
0:02:26.1]} 21. Rxf5 {[%clk 0:02:18.1]} 21... Re8 {[%clk 0:02:20.6]} 22. Raf1
{[%clk 0:02:10.7]} 22... h4 {[%clk 0:02:16.1]} 23. Qg4 {[%clk 0:01:54.6]} 23...
Nxe5 {[%clk 0:02:15.6]} 24. Rxe5 {[%clk 0:01:33.7]} 24... Rxe5 {[%clk
0:02:17.5]} 25. Bxd4 {[%clk 0:01:32.5]} 25... Qe6 {[%clk 0:02:18.1]} 26. Qxe6
{[%clk 0:01:23.6]} 26... Rxe6 {[%clk 0:02:20]} 27. Nf4 {[%clk 0:01:18.4]} 27...
Rd6 {[%clk 0:02:20.3]} 28. Bc5 {[%clk 0:01:01.4]} 28... Rf6 {[%clk 0:02:20.5]}
29. Bd4 {[%clk 0:00:57.3]} 29... Rf5 {[%clk 0:02:21]} 30. Rf3 {[%clk 0:00:53.5]}
30... Bd6 {[%clk 0:02:21.3]} 31. Nd3 {[%clk 0:00:51.9]} 31... Rxf3 {[%clk
0:02:20.5]} 32. gxf3 {[%clk 0:00:53.8]} 32... f5 {[%clk 0:02:19.8]} 33. Bb6
{[%clk 0:00:53.6]} 33... h3 {[%clk 0:02:18.5]} 34. Bxa5 {[%clk 0:00:48.3]} 34...
Re7 {[%clk 0:02:18.9]} 35. Bc3 {[%clk 0:00:41.3]} 35... Re2 {[%clk 0:02:19.9]}
36. f4 {[%clk 0:00:41.7]} 36... Kf7 {[%clk 0:02:14.3]} 37. Ne5+ {[%clk
0:00:36.1]} 37... Bxe5 {[%clk 0:02:14.4]} 0-1

[Event "*** Titled Tuesday Blitz"]
[Site "Chess.com"]
[Date "2018.06.05"]
[Round "1"]
[White "nubair1198"]
[Black "HanSchut"]
[Result "1-0"]
[WhiteElo "2535"]
[BlackElo "2219"]
[TimeControl "180+2"]
[EndTime "13:06:15 PDT"]
[Termination "nubair1198 won by resignation"]

1. c4 {[%clk 0:03:01.9]} 1... Nf6 {[%clk 0:02:59.8]} 2. Nc3 {[%clk 0:03:00.4]}
2... d5 {[%clk 0:03:00.7]} 3. cxd5 {[%clk 0:03:01.2]} 3... Nxd5 {[%clk 0:03:01]}
4. g3 {[%clk 0:03:02.8]} 4... c5 {[%clk 0:03:01.2]} 5. Bg2 {[%clk 0:03:04]} 5...
Nc7 {[%clk 0:03:00.3]} 6. Qb3 {[%clk 0:03:02.4]} 6... Nc6 {[%clk 0:02:28]} 7.
Bxc6+ {[%clk 0:02:58.6]} 7... bxc6 {[%clk 0:02:29.9]} 8. Nf3 {[%clk 0:02:59.3]}
8... e6 {[%clk 0:02:21.5]} 9. d3 {[%clk 0:03:00.2]} 9... Be7 {[%clk 0:02:21.1]}
10. Be3 {[%clk 0:02:56.7]} 10... Nd5 {[%clk 0:02:22]} 11. Nxd5 {[%clk
0:02:52.2]} 11... cxd5 {[%clk 0:02:23.2]} 12. Rc1 {[%clk 0:02:53.8]} 12... d4
{[%clk 0:02:16.4]} 13. Bf4 {[%clk 0:02:53.2]} 13... O-O {[%clk 0:02:12.7]} 14.
Ne5 {[%clk 0:02:54.4]} 14... Bd7 {[%clk 0:02:04.3]} 15. Qb7 {[%clk 0:02:26.8]}
15... Be8 {[%clk 0:01:31.7]} 16. Nc4 {[%clk 0:02:20.6]} 16... f6 {[%clk
0:01:23.6]} 17. Bc7 {[%clk 0:02:12.8]} 17... Qc8 {[%clk 0:01:20.3]} 18. Qxc8
{[%clk 0:02:13.9]} 18... Rxc8 {[%clk 0:01:20.8]} 19. Bd6 {[%clk 0:02:15.8]}
19... Bxd6 {[%clk 0:01:15.6]} 20. Nxd6 {[%clk 0:02:17.7]} 20... Rc6 {[%clk
0:01:14.3]} 21. Ne4 {[%clk 0:02:14]} 21... Bg6 {[%clk 0:01:09.8]} 22. Nxc5
{[%clk 0:02:12.6]} 22... Rfc8 {[%clk 0:01:11.3]} 23. b4 {[%clk 0:02:14]} 23...
a5 {[%clk 0:01:12.8]} 24. a3 {[%clk 0:02:15.3]} 24... axb4 {[%clk 0:01:14.7]}
25. axb4 {[%clk 0:02:17.2]} 25... Rb8 {[%clk 0:01:14.1]} 26. Rc4 {[%clk
0:01:31.5]} 26... e5 {[%clk 0:01:10]} 27. Kd2 {[%clk 0:01:32.7]} 27... Bf7
{[%clk 0:01:10.5]} 28. Rc2 {[%clk 0:01:34]} 28... Rxb4 {[%clk 0:01:11.6]} 29.
Ra1 {[%clk 0:01:32.3]} 29... h6 {[%clk 0:01:11.9]} 30. Ra8+ {[%clk 0:01:31.3]}
30... Kh7 {[%clk 0:01:13.2]} 31. Nd7 {[%clk 0:01:33.1]} 31... Rxc2+ {[%clk
0:01:12.1]} 32. Kxc2 {[%clk 0:01:35]} 32... Rb7 {[%clk 0:01:13]} 33. Rd8 {[%clk
0:01:16.4]} 33... h5 {[%clk 0:01:05.6]} 34. h4 {[%clk 0:01:14.9]} 34... Be6
{[%clk 0:01:05.2]} 35. Nf8+ {[%clk 0:01:15.2]} 1-0

[Event "*** Titled Tuesday Blitz"]
[Site "Chess.com"]
[Date "2018.06.05"]
[Round "1"]
[White "PowerThinking2650"]
[Black "JaimeSantosLatasa"]
[Result "1-0"]
[WhiteElo "2348"]
[BlackElo "2633"]
[TimeControl "180+2"]
[EndTime "13:06:23 PDT"]
[Termination "PowerThinking2650 won by resignation"]

1. e4 {[%clk 0:02:28.4]} 1... c5 {[%clk 0:03:00]} 2. Nf3 {[%clk 0:02:29]} 2...
d6 {[%clk 0:03:01.1]} 3. Nc3 {[%clk 0:02:29.5]} 3... Nf6 {[%clk 0:03:01.4]} 4.
g3 {[%clk 0:02:27.9]} 4... b6 {[%clk 0:03:00.4]} 5. Bg2 {[%clk 0:02:28.2]} 5...
Bb7 {[%clk 0:03:00.9]} 6. d3 {[%clk 0:02:29.4]} 6... Nbd7 {[%clk 0:03:01.3]} 7.
O-O {[%clk 0:02:28.4]} 7... g6 {[%clk 0:03:02.2]} 8. h3 {[%clk 0:02:28.1]} 8...
Bg7 {[%clk 0:03:03.1]} 9. Be3 {[%clk 0:02:29.2]} 9... O-O {[%clk 0:03:04.1]} 10.
Qd2 {[%clk 0:02:29.8]} 10... e5 {[%clk 0:03:04.1]} 11. Bh6 {[%clk 0:02:29.2]}
11... a6 {[%clk 0:03:04.4]} 12. a4 {[%clk 0:02:25.7]} 12... Bc6 {[%clk
0:03:04.1]} 13. Bxg7 {[%clk 0:02:21.1]} 13... Kxg7 {[%clk 0:03:04.5]} 14. Nh4
{[%clk 0:02:21.7]} 14... Nh5 {[%clk 0:03:03.4]} 15. Kh2 {[%clk 0:02:12.9]} 15...
Nf4 {[%clk 0:02:55.3]} 16. Nd5 {[%clk 0:02:05.5]} 16... Bxd5 {[%clk 0:02:53.2]}
17. exd5 {[%clk 0:02:06.7]} 17... Nxg2 {[%clk 0:02:51]} 18. Nxg2 {[%clk
0:02:04.4]} 18... b5 {[%clk 0:02:52.9]} 19. f4 {[%clk 0:02:01.5]} 19... Nb6
{[%clk 0:02:44.9]} 20. c4 {[%clk 0:01:34.7]} 20... bxc4 {[%clk 0:02:23.7]} 21.
dxc4 {[%clk 0:01:33.9]} 21... exf4 {[%clk 0:02:23.1]} 22. Rxf4 {[%clk
0:01:27.8]} 22... Nd7 {[%clk 0:02:20.8]} 23. Ne3 {[%clk 0:01:13.3]} 23... Rb8
{[%clk 0:02:15.2]} 24. Raf1 {[%clk 0:01:00.3]} 24... h5 {[%clk 0:02:07.2]} 25.
g4 {[%clk 0:00:56.7]} 25... hxg4 {[%clk 0:02:03.8]} 26. Nxg4 {[%clk 0:00:56.7]}
26... f5 {[%clk 0:01:52.6]} 27. Rxf5 {[%clk 0:00:53.8]} 27... Rxf5 {[%clk
0:01:52.4]} 28. Qh6+ {[%clk 0:00:49.6]} 28... Kf7 {[%clk 0:01:53.4]} 29. Qh7+
{[%clk 0:00:43.7]} 29... Kf8 {[%clk 0:01:53.6]} 30. Qh8+ {[%clk 0:00:36.2]}
30... Kf7 {[%clk 0:01:54.6]} 31. Nh6+ {[%clk 0:00:29.8]} 31... Ke7 {[%clk
0:01:49.7]} 32. Qg7+ {[%clk 0:00:24.6]} 32... Ke8 {[%clk 0:01:47.4]} 33. Qxg6+
{[%clk 0:00:21.5]} 1-0